[Event "AUT-ch 2018"]
[Site "Vienna"]
[Date "2018.07.27"]
[Round "7"]
[White "Bauer, Thomas"]
[Black "Zojer, Stefan"]
[Result "1-0"]
[ECO "C50"]
[WhiteElo "2181"]
[BlackElo "2108"]
[Annotator "NA"]
[PlyCount "89"]
[EventDate "2018.07.22"]
[EventType "swiss"]
[EventCountry "AUT"]
[SourceTitle "playchess.com"]
[Source "ChessBase"]
[SourceQuality "1"]
[TimeControl "40/5400+30:1800+30"]

1. e4 {[%emt 0:00:00]} e5 {[%emt 0:00:04]} 2. Nf3 {[%emt 0:00:00]} Nc6 {[%emt 0:00:04]} 3. Bc4 {[%emt 0:00:00]} Bc5 {[%emt 0:00:06]} 4. d3 {[%emt 0:00:00]} Nf6 {[%emt 0:00:19]} 5. O-O {[%emt 0:00:00]} O-O {[%emt 0:01:03]} 6. Nbd2 {[%emt 0:00:00]} d5 {[%emt 0:04:56]} 7. exd5 {[%emt 0:00:01]} Nxd5 {[%emt 0:00:24]} 8. a4 {[%emt 0:00:03]} Be6 {[%emt 0:06:32]} 9. Re1 {[%emt 0:02:26]} f6 {[%emt 0:05:27]} 10. c3 {[%emt 0:04:26]} Re8 {[%emt 0:06:33]} 11. a5 {[%emt 0:08:19]} Qd7 {[%emt 0:10:23]} 12. Ne4 {[%emt 0:09:05]} Bf8 {[%emt 0:03:59]} 13. a6 {[%emt 0:06:36]} bxa6 {[%emt 0:11:18]} 14. Rxa6 {[%emt 0:10:15]} Rab8 {[%emt 0:03:46]} 15. d4 {[%emt 0:07:38]} Nb6 {[%emt 0:05:17]} 16. Nc5 {[%emt 0:16:47]} Bxc5 {[%emt 0:01:03]} 17. Bxe6+ {[%emt 0:00:14]} Qxe6 {[%emt 0:00:57]} 18. dxc5 {[%emt 0:01:09]} Qc4 {[%emt 0:12:14]} 19. cxb6 {[%emt 0:04:01]} Qxa6 {[%emt 0:00:55]} 20. Qd5+ {[%emt 0:00:10]} Kh8 {[%emt 0:00:28]} 21. Qxc6 {[%emt 0:00:09]} cxb6 {[%emt 0:00:36]} 22. h4 {[%emt 0:04:33]} Red8 {[%emt 0:00:59]} 23. h5 {[%emt 0:01:23]} Rbc8 {[%emt 0:01:14]} 24. Qe6 {[%emt 0:02:07]} Qc4 {[%emt 0:01:30]} 25. Qe7 {[%emt 0:02:00]} Qc7 {[%emt 0:01:11]} 26. Qa3 {[%emt 0:01:05]} Qf7 {[%emt 0:01:36]} 27. h6 {[%emt 0:01:04]} g5 {[%emt 0:00:54]} 28. Qa4 {[%emt 0:04:09]} Rc7 {[%emt 0:01:41]} 29. Qg4 {[%emt 0:03:04]} Qf8 {[%emt 0:02:50]} 30. Qh3 {[%emt 0:02:26]} Rc4 {[%emt 0:00:53]} 31. Qe6 {[%emt 0:00:49]} Rc5 {[%emt 0:02:20]} 32. b3 {[%emt 0:05:37]} Rd6 {[%emt 0:02:51]} 33. Qf5 {[%emt 0:00:57]} Qc8 {[%emt 0:01:36]} 34. Qe4 {[%emt 0:01:25]} Qc6 {[%emt 0:02:33]} 35. Qg4 {[%emt 0:03:03]} Qc8 {[%emt 0:03:08]} 36. Qh5 {[%emt 0:00:47]} Rxc3 {[%emt 0:00:35]} 37. Bb2 {[%emt 0:01:16]} Rxb3 {[%emt 0:02:36]} 38. Nxg5 {[%emt 0:00:54]} Rd7 {[%emt 0:02:19]} 39. Ba1 {[%emt 0:00:57]} Qg8 {[%emt 0:01:05]} 40. Ne4 {[%emt 0:00:29]} Qf7 {[%emt 0:31:36]} 41. Qf5 {[%emt 0:01:55]} Rbd3 {[%emt 0:00:00]} 42. Bxe5 {[%emt 0:07:01]} fxe5 {[%emt 0:00:00]} 43. Qxe5+ {[%emt 0:00:09]} Kg8 {[%emt 0:00:00]} 44. Nf6+ {[%emt 0:00:04]} Kf8 {[%emt 0:00:00]} 45. Nxh7+ {[%emt 0:00:09]} 1-0

[Event "AUT-ch 2018"]
[Site "Vienna"]
[Date "2018.07.27"]
[Round "7"]
[White "Newrkla, Katharina"]
[Black "Morgunov, Daniel"]
[Result "0-1"]
[ECO "B23"]
[WhiteElo "2175"]
[BlackElo "2346"]
[Annotator "NA"]
[PlyCount "106"]
[EventDate "2018.07.22"]
[EventType "swiss"]
[EventCountry "AUT"]
[SourceTitle "playchess.com"]
[Source "ChessBase"]
[SourceQuality "1"]
[TimeControl "40/5400+30:1800+30"]

1. e4 {[%emt 0:00:00]} c5 {[%emt 0:00:04]} 2. Nc3 {[%emt 0:00:00]} d6 {[%emt 0:00:18]} 3. f4 {[%emt 0:00:00]} g6 {[%emt 0:01:11]} 4. Nf3 {[%emt 0:00:01]} Bg7 {[%emt 0:00:04]} 5. Bb5+ {[%emt 0:01:37]} Bd7 {[%emt 0:05:44]} 6. Bc4 {[%emt 0:02:04]} Nc6 {[%emt 0:01:36]} 7. d3 {[%emt 0:02:35]} Nf6 {[%emt 0:01:35]} 8. O-O {[%emt 0:06:42]} O-O {[%emt 0:00:49]} 9. Qe1 {[%emt 0:05:52]} Nd4 {[%emt 0:16:27]} 10. Nxd4 {[%emt 0:25:47]} cxd4 {[%emt 0:00:09]} 11. Ne2 {[%emt 0:00:27]} d5 {[%emt 0:13:56]} 12. exd5 {[%emt 0:01:55]} Ba4 {[%emt 0:00:28]} 13. f5 {[%emt 0:08:01]} Nxd5 {[%emt 0:04:31]} 14. Nf4 {[%emt 0:05:53]} Nxf4 {[%emt 0:04:24]} 15. Bxf4 {[%emt 0:01:02]} Rc8 {[%emt 0:07:01]} 16. Bg5 {[%emt 0:07:29]} Rc7 {[%emt 0:02:19]} 17. fxg6 {[%emt 0:02:18]} hxg6 {[%emt 0:01:15]} 18. Qf2 {[%emt 0:03:44]} Qe8 {[%emt 0:05:15]} 19. Rae1 {[%emt 0:01:48]} b5 {[%emt 0:04:24]} 20. Bb3 {[%emt 0:04:54]} Bxb3 {[%emt 0:00:13]} 21. cxb3 {[%emt 0:00:21]} e6 {[%emt 0:04:52]} 22. Rc1 {[%emt 0:03:47]} Qd7 {[%emt 0:02:14]} 23. Rxc7 {[%emt 0:04:02]} Qxc7 {[%emt 0:00:05]} 24. Rc1 {[%emt 0:00:07]} Qe5 {[%emt 0:05:44]} 25. Bd2 {[%emt 0:01:32]} Rd8 {[%emt 0:01:00]} 26. Qf3 {[%emt 0:04:45]} Bf8 {[%emt 0:04:05]} 27. g3 {[%emt 0:01:19]} Rd5 {[%emt 0:01:38]} 28. Rc8 {[%emt 0:05:02]} Rc5 {[%emt 0:00:41]} 29. Qa8 {[%emt 0:00:46]} Rxc8 {[%emt 0:00:27]} 30. Qxc8 {[%emt 0:00:01]} Qc5 {[%emt 0:01:48]} 31. Qd8 {[%emt 0:00:38]} Kh7 {[%emt 0:03:48]} 32. Qf6 {[%emt 0:00:33]} Kg8 {[%emt 0:02:27]} 33. Qd8 {[%emt 0:00:39]} Kg7 {[%emt 0:01:57]} 34. Bg5 {[%emt 0:00:15]} e5 {[%emt 0:03:07]} 35. Qf6+ {[%emt 0:00:43]} Kg8 {[%emt 0:00:07]} 36. b4 {[%emt 0:00:26]} Qd6 {[%emt 0:00:37]} 37. Qxd6 {[%emt 0:00:43]} Bxd6 {[%emt 0:00:03]} 38. Bf6 {[%emt 0:00:19]} Kf8 {[%emt 0:00:33]} 39. Kf2 {[%emt 0:00:32]} Ke8 {[%emt 0:00:13]} 40. g4 {[%emt 0:00:42]} Kd7 {[%emt 0:30:14]} 41. Kf3 {[%emt 0:14:25]} Ke6 {[%emt 0:00:00]} 42. g5 {[%emt 0:01:52]} Be7 {[%emt 0:00:00]} 43. Bxe7 {[%emt 0:00:56]} Kxe7 {[%emt 0:00:00]} 44. b3 {[%emt 0:05:36]} Ke6 {[%emt 0:00:00]} 45. Kg4 {[%emt 0:02:47]} Kd6 {[%emt 0:00:00]} 46. Kg3 {[%emt 0:00:49]} a6 {[%emt 0:00:00]} 47. h3 {[%emt 0:01:38]} e4 {[%emt 0:00:00]} 48. dxe4 {[%emt 0:00:52]} Ke5 {[%emt 0:00:00]} 49. Kf3 {[%emt 0:00:07]} d3 {[%emt 0:00:00]} 50. Ke3 {[%emt 0:00:03]} d2 {[%emt 0:00:00]} 51. Kxd2 {[%emt 0:00:04]} Kxe4 {[%emt 0:00:00]} 52. a4 {[%emt 0:03:08]} Kf4 {[%emt 0:00:00]} 53. axb5 {[%emt 0:02:49]} axb5 {[%emt 0:00:00]} 0-1

[Event "AUT-ch 2018"]
[Site "Vienna"]
[Date "2018.07.27"]
[Round "7"]
[White "Steiner, Adam"]
[Black "Pacher, Simon"]
[Result "1-0"]
[ECO "C26"]
[WhiteElo "2174"]
[BlackElo "2097"]
[Annotator "NA"]
[PlyCount "29"]
[EventDate "2018.07.22"]
[EventType "swiss"]
[EventCountry "AUT"]
[SourceTitle "playchess.com"]
[Source "ChessBase"]
[SourceQuality "1"]
[TimeControl "40/5400+30:1800+30"]

1. e4 {[%emt 0:00:00]} e5 {[%emt 0:00:04]} 2. Nc3 {[%emt 0:00:00]} Nf6 {[%emt 0:00:26]} 3. Bc4 {[%emt 0:00:13]} c6 {[%emt 0:01:49]} 4. d4 {[%emt 0:04:23]} b5 {[%emt 0:05:20]} 5. Bb3 {[%emt 0:06:22]} exd4 {[%emt 0:11:35]} 6. Qxd4 {[%emt 0:00:14]} Na6 {[%emt 0:05:13]} 7. e5 {[%emt 0:09:44]} Bc5 {[%emt 0:01:12]} 8. Qh4 {[%emt 0:08:55]} Qe7 {[%emt 0:01:16]} 9. Nf3 {[%emt 0:00:59]} d6 {[%emt 0:08:02]} 10. Bg5 {[%emt 0:03:35]} dxe5 {[%emt 0:02:51]} 11. O-O-O {[%emt 0:00:56]} Qc7 {[%emt 0:10:37]} 12. Bxf6 {[%emt 0:04:40]} gxf6 {[%emt 0:00:56]} 13. Qxf6 {[%emt 0:00:14]} O-O {[%emt 0:00:58]} 14. Nxe5 {[%emt 0:01:44]} Bxf2 {[%emt 0:03:50]} 15. Nxf7 {[%emt 0:01:52]} 1-0

[Event "AUT-ch 2018"]
[Site "Vienna"]
[Date "2018.07.27"]
[Round "7"]
[White "Polterauer, Chiara"]
[Black "Neumeier, Klaus"]
[Result "0-1"]
[ECO "B77"]
[WhiteElo "2169"]
[BlackElo "2284"]
[Annotator "NA"]
[PlyCount "70"]
[EventDate "2018.07.22"]
[EventType "swiss"]
[EventCountry "AUT"]
[SourceTitle "playchess.com"]
[Source "ChessBase"]
[SourceQuality "1"]
[TimeControl "40/5400+30:1800+30"]

1. e4 {[%emt 0:00:00]} c5 {[%emt 0:00:08]} 2. Nf3 {[%emt 0:00:00]} d6 {[%emt 0:00:19]} 3. d4 {[%emt 0:00:00]} cxd4 {[%emt 0:00:08]} 4. Nxd4 {[%emt 0:00:00]} Nf6 {[%emt 0:00:18]} 5. Nc3 {[%emt 0:00:24]} g6 {[%emt 0:00:25]} 6. Be3 {[%emt 0:00:53]} Bg7 {[%emt 0:00:19]} 7. f3 {[%emt 0:02:18]} O-O {[%emt 0:00:19]} 8. Qd2 {[%emt 0:00:13]} Nc6 {[%emt 0:00:13]} 9. Bc4 {[%emt 0:00:31]} Bd7 {[%emt 0:00:24]} 10. Bb3 {[%emt 0:00:48]} Rc8 {[%emt 0:01:20]} 11. O-O-O {[%emt 0:00:20]} Nxd4 {[%emt 0:01:23]} 12. Bxd4 {[%emt 0:00:52]} b5 {[%emt 0:00:19]} 13. Bxa7 {[%emt 0:14:18]} b4 {[%emt 0:07:17]} 14. Nd5 {[%emt 0:09:08]} Nxd5 {[%emt 0:00:32]} 15. exd5 {[%emt 0:00:22]} Qa5 {[%emt 0:13:33]} 16. Bd4 {[%emt 0:02:24]} Rxc2+ {[%emt 0:27:12]} 17. Bxc2 {[%emt 0:12:57]} Qxa2 {[%emt 0:00:11]} 18. Qe3 {[%emt 0:02:42]} Rc8 {[%emt 0:03:16]} 19. Kd2 {[%emt 0:14:15]} Rxc2+ {[%emt 0:02:27]} 20. Kxc2 {[%emt 0:00:31]} Qc4+ {[%emt 0:00:17]} 21. Kd2 {[%emt 0:02:36]} Bxd4 {[%emt 0:00:11]} 22. Qd3 {[%emt 0:04:38]} Qxd5 {[%emt 0:00:52]} 23. Qe4 {[%emt 0:00:25]} Qxe4 {[%emt 0:15:09]} 24. fxe4 {[%emt 0:00:04]} Bxb2 {[%emt 0:00:06]} 25. Ke3 {[%emt 0:08:45]} Be6 {[%emt 0:04:28]} 26. Rb1 {[%emt 0:03:47]} Bc3 {[%emt 0:00:11]} 27. Rhc1 {[%emt 0:00:20]} f5 {[%emt 0:04:50]} 28. h3 {[%emt 0:10:02]} fxe4 {[%emt 0:03:30]} 29. Kxe4 {[%emt 0:03:20]} d5+ {[%emt 0:02:53]} 30. Kf4 {[%emt 0:01:45]} Bf5 {[%emt 0:00:41]} 31. Rxc3 {[%emt 0:01:14]} bxc3 {[%emt 0:00:39]} 32. Rc1 {[%emt 0:00:02]} d4 {[%emt 0:01:53]} 33. g4 {[%emt 0:02:41]} d3 {[%emt 0:01:37]} 34. Ke3 {[%emt 0:02:30]} d2 {[%emt 0:00:08]} 35. Ra1 {[%emt 0:00:03]} Bc2 {[%emt 0:00:16]} 0-1

[Event "AUT-ch 2018"]
[Site "Vienna"]
[Date "2018.07.27"]
[Round "7"]
[White "Zimmermann, Heinz"]
[Black "Riemelmoser, Stefan"]
[Result "1-0"]
[ECO "A06"]
[WhiteElo "2162"]
[BlackElo "2162"]
[Annotator "NA"]
[PlyCount "127"]
[EventDate "2018.07.22"]
[EventType "swiss"]
[EventCountry "AUT"]
[SourceTitle "playchess.com"]
[Source "ChessBase"]
[SourceQuality "1"]
[TimeControl "40/5400+30:1800+30"]

1. Nf3 {[%emt 0:00:00]} d5 {[%emt 0:00:09]} 2. d4 {[%emt 0:00:00]} e6 {[%emt 0:00:10]} 3. c3 {[%emt 0:00:21]} Be7 {[%emt 0:01:55]} 4. Bf4 {[%emt 0:00:09]} Nf6 {[%emt 0:00:37]} 5. e3 {[%emt 0:00:14]} c5 {[%emt 0:03:54]} 6. Nbd2 {[%emt 0:00:27]} Nc6 {[%emt 0:08:54]} 7. Bd3 {[%emt 0:00:35]} O-O {[%emt 0:12:53]} 8. Ne5 {[%emt 0:05:28]} Re8 {[%emt 0:05:06]} 9. Qf3 {[%emt 0:01:48]} Nxe5 {[%emt 0:03:32]} 10. dxe5 {[%emt 0:04:24]} Nd7 {[%emt 0:00:16]} 11. h4 {[%emt 0:00:38]} c4 {[%emt 0:04:58]} 12. Bc2 {[%emt 0:00:17]} Qb6 {[%emt 0:01:20]} 13. Rb1 {[%emt 0:00:28]} Qc7 {[%emt 0:05:25]} 14. Qg3 {[%emt 0:04:47]} b5 {[%emt 0:00:29]} 15. Nf3 {[%emt 0:01:26]} b4 {[%emt 0:03:25]} 16. Bh6 {[%emt 0:06:23]} Bf8 {[%emt 0:03:39]} 17. h5 {[%emt 0:01:03]} Kh8 {[%emt 0:04:13]} 18. Bf4 {[%emt 0:26:59]} Nc5 {[%emt 0:01:18]} 19. h6 {[%emt 0:04:27]} g6 {[%emt 0:01:06]} 20. O-O {[%emt 0:08:18]} b3 {[%emt 0:04:07]} 21. axb3 {[%emt 0:01:07]} cxb3 {[%emt 0:00:02]} 22. Bd1 {[%emt 0:00:15]} Ba6 {[%emt 0:03:49]} 23. Re1 {[%emt 0:00:41]} Nd3 {[%emt 0:00:44]} 24. Re2 {[%emt 0:03:07]} Nxf4 {[%emt 0:00:39]} 25. Qxf4 {[%emt 0:00:13]} Bxe2 {[%emt 0:00:40]} 26. Bxe2 {[%emt 0:00:08]} a5 {[%emt 0:03:02]} 27. Ra1 {[%emt 0:01:10]} Qd7 {[%emt 0:14:29]} 28. Nd4 {[%emt 0:12:22]} Reb8 {[%emt 0:01:53]} 29. c4 {[%emt 0:05:49]} a4 {[%emt 0:08:06]} 30. cxd5 {[%emt 0:01:10]} a3 {[%emt 0:00:36]} 31. bxa3 {[%emt 0:00:52]} b2 {[%emt 0:00:19]} 32. Rb1 {[%emt 0:00:38]} exd5 {[%emt 0:03:46]} 33. e6 {[%emt 0:04:16]} fxe6 {[%emt 0:00:53]} 34. Qe5+ {[%emt 0:00:28]} Bg7 {[%emt 0:00:32]} 35. hxg7+ {[%emt 0:00:48]} Qxg7 {[%emt 0:00:03]} 36. Qxg7+ {[%emt 0:04:38]} Kxg7 {[%emt 0:00:02]} 37. Nb5 {[%emt 0:00:06]} e5 {[%emt 0:01:24]} 38. Rxb2 {[%emt 0:00:12]} d4 {[%emt 0:00:21]} 39. exd4 {[%emt 0:00:18]} exd4 {[%emt 0:00:01]} 40. Rd2 {[%emt 0:00:12]} Rd8 41. Nc7 {[%emt 0:00:20]} Kf6 {[%emt 0:04:39]} 42. Nxa8 {[%emt 0:00:38]} Rxa8 {[%emt 0:00:01]} 43. Rd3 {[%emt 0:00:36]} Ke5 {[%emt 0:00:39]} 44. f3 {[%emt 0:00:38]} Rb8 {[%emt 0:00:37]} 45. Bd1 {[%emt 0:05:02]} Rb2 {[%emt 0:01:49]} 46. Kf1 {[%emt 0:00:36]} g5 {[%emt 0:00:45]} 47. g4 {[%emt 0:05:03]} h6 {[%emt 0:01:30]} 48. Ke1 {[%emt 0:01:13]} Ra2 {[%emt 0:01:57]} 49. a4 {[%emt 0:00:21]} Rb2 {[%emt 0:00:34]} 50. Rb3 {[%emt 0:00:36]} Ra2 {[%emt 0:01:23]} 51. Rb4 {[%emt 0:01:49]} Ra1 {[%emt 0:03:07]} 52. Kd2 {[%emt 0:00:46]} Ra2+ {[%emt 0:00:13]} 53. Bc2 {[%emt 0:00:37]} Kf4 {[%emt 0:00:47]} 54. Rxd4+ {[%emt 0:00:36]} Kxf3 {[%emt 0:00:03]} 55. Kc3 {[%emt 0:00:17]} Ke3 {[%emt 0:01:16]} 56. Re4+ {[%emt 0:00:42]} Kf3 {[%emt 0:00:03]} 57. Rb4 {[%emt 0:00:24]} Ra1 {[%emt 0:01:07]} 58. Kb2 {[%emt 0:00:09]} Re1 {[%emt 0:00:45]} 59. a5 {[%emt 0:00:28]} h5 {[%emt 0:00:28]} 60. gxh5 {[%emt 0:00:26]} g4 {[%emt 0:00:03]} 61. a6 {[%emt 0:01:26]} g3 {[%emt 0:00:16]} 62. a7 {[%emt 0:00:26]} Re8 {[%emt 0:00:03]} 63. Be4+ {[%emt 0:00:34]} Rxe4 {[%emt 0:00:17]} 64. a8=Q 1-0

[Event "AUT-ch 2018"]
[Site "Vienna"]
[Date "2018.07.27"]
[Round "7"]
[White "Frank, Emanuel"]
[Black "Gelbenegger, Patrick"]
[Result "1-0"]
[ECO "E06"]
[WhiteElo "2161"]
[BlackElo "2260"]
[Annotator "NA"]
[PlyCount "97"]
[EventDate "2018.07.22"]
[EventType "swiss"]
[EventCountry "AUT"]
[SourceTitle "playchess.com"]
[Source "ChessBase"]
[SourceQuality "1"]
[TimeControl "40/5400+30:1800+30"]

1. d4 {[%emt 0:00:00]} d5 {[%emt 0:00:05]} 2. c4 {[%emt 0:00:00]} e6 {[%emt 0:00:04]} 3. Nf3 {[%emt 0:00:00]} Nf6 {[%emt 0:00:04]} 4. g3 {[%emt 0:00:00]} Be7 {[%emt 0:00:09]} 5. Bg2 {[%emt 0:00:04]} O-O {[%emt 0:00:06]} 6. O-O {[%emt 0:00:09]} dxc4 {[%emt 0:00:05]} 7. Qc2 {[%emt 0:02:04]} a6 {[%emt 0:00:13]} 8. a4 {[%emt 0:00:09]} Bd7 {[%emt 0:02:26]} 9. Rd1 {[%emt 0:01:11]} Bc6 {[%emt 0:00:22]} 10. Nc3 {[%emt 0:00:10]} Nbd7 {[%emt 0:05:04]} 11. e4 {[%emt 0:03:29]} b5 {[%emt 0:07:29]} 12. d5 {[%emt 0:01:53]} exd5 {[%emt 0:05:44]} 13. e5 {[%emt 0:00:23]} Ne8 {[%emt 0:05:47]} 14. Nxd5 {[%emt 0:14:32]} Bxd5 {[%emt 0:07:51]} 15. Rxd5 {[%emt 0:01:59]} c6 {[%emt 0:02:32]} 16. Rd1 {[%emt 0:01:12]} Qc7 {[%emt 0:02:09]} 17. axb5 {[%emt 0:06:56]} cxb5 {[%emt 0:06:05]} 18. Ng5 {[%emt 0:00:21]} Bxg5 {[%emt 0:03:11]} 19. Bxa8 {[%emt 0:00:10]} Bxc1 {[%emt 0:00:34]} 20. Rdxc1 {[%emt 0:14:35]} Qxe5 {[%emt 0:06:52]} 21. Bc6 {[%emt 0:03:54]} Qd6 {[%emt 0:24:12]} 22. Bxd7 {[%emt 0:08:20]} Qxd7 {[%emt 0:01:55]} 23. Rxa6 {[%emt 0:00:14]} Qb7 {[%emt 0:02:30]} 24. Rca1 {[%emt 0:02:36]} Nf6 {[%emt 0:02:59]} 25. Qf5 {[%emt 0:05:17]} Re8 {[%emt 0:01:53]} 26. g4 {[%emt 0:02:58]} h6 {[%emt 0:02:27]} 27. h4 {[%emt 0:14:46]} Qe4 {[%emt 0:05:29]} 28. Qxe4 {[%emt 0:05:11]} Rxe4 {[%emt 0:00:13]} 29. Ra8+ {[%emt 0:00:03]} Kh7 {[%emt 0:00:29]} 30. f3 {[%emt 0:00:37]} Re2 {[%emt 0:00:35]} 31. Rb1 {[%emt 0:00:04]} Nd7 {[%emt 0:01:42]} 32. Kf1 {[%emt 0:06:30]} Rc2 {[%emt 0:00:29]} 33. Re8 {[%emt 0:01:44]} b4 {[%emt 0:02:06]} 34. Re2 {[%emt 0:01:09]} Rxe2 {[%emt 0:01:20]} 35. Kxe2 {[%emt 0:00:01]} Kg6 {[%emt 0:00:38]} 36. Rc1 {[%emt 0:01:51]} Nb6 {[%emt 0:00:06]} 37. Ke3 {[%emt 0:01:08]} c3 {[%emt 0:00:46]} 38. b3 {[%emt 0:01:08]} Kf6 {[%emt 0:00:44]} 39. Kd4 {[%emt 0:00:17]} Nd7 {[%emt 0:00:47]} 40. Ra1 {[%emt 0:01:47]} Nb8 {[%emt 0:31:02]} 41. Kc5 {[%emt 0:02:39]} Ke5 {[%emt 0:00:00]} 42. Kxb4 {[%emt 0:09:13]} Kf4 {[%emt 0:00:00]} 43. Kxc3 {[%emt 0:05:28]} Kxf3 {[%emt 0:00:00]} 44. Rf1+ {[%emt 0:00:51]} Kxg4 {[%emt 0:00:00]} 45. Rxf7 {[%emt 0:00:03]} Kxh4 {[%emt 0:00:00]} 46. Rxg7 {[%emt 0:01:08]} h5 {[%emt 0:00:00]} 47. b4 {[%emt 0:01:33]} Kh3 {[%emt 0:00:00]} 48. b5 {[%emt 0:00:17]} h4 {[%emt 0:00:00]} 49. Rb7 {[%emt 0:00:09]} 1-0

[Event "AUT-ch 2018"]
[Site "Vienna"]
[Date "2018.07.27"]
[Round "7"]
[White "Thoma, Wilhelm Jun"]
[Black "Jakits, Leopold"]
[Result "0-1"]
[ECO "A46"]
[WhiteElo "2161"]
[BlackElo "2161"]
[Annotator "NA"]
[PlyCount "66"]
[EventDate "2018.07.22"]
[EventType "swiss"]
[EventCountry "AUT"]
[SourceTitle "playchess.com"]
[Source "ChessBase"]
[SourceQuality "1"]
[TimeControl "40/5400+30:1800+30"]

1. d4 {[%emt 0:00:00]} Nf6 {[%emt 0:00:07]} 2. Nf3 {[%emt 0:00:00]} e6 {[%emt 0:00:08]} 3. g3 {[%emt 0:00:23]} b6 {[%emt 0:01:43]} 4. Bg2 {[%emt 0:00:06]} Bb7 {[%emt 0:00:03]} 5. O-O {[%emt 0:00:13]} Be7 {[%emt 0:00:28]} 6. c4 {[%emt 0:00:23]} O-O {[%emt 0:02:35]} 7. d5 {[%emt 0:00:47]} exd5 {[%emt 0:01:41]} 8. Nh4 {[%emt 0:00:14]} c6 {[%emt 0:00:55]} 9. cxd5 {[%emt 0:00:20]} Nxd5 {[%emt 0:00:27]} 10. Nf5 {[%emt 0:00:11]} Nc7 {[%emt 0:05:40]} 11. Nc3 {[%emt 0:00:16]} d5 {[%emt 0:01:36]} 12. e4 {[%emt 0:00:50]} Bf6 {[%emt 0:02:52]} 13. Bf4 {[%emt 0:04:40]} Bc8 {[%emt 0:31:14]} 14. g4 {[%emt 0:03:28]} Nba6 {[%emt 0:06:40]} 15. Rc1 {[%emt 0:28:18]} Bg5 {[%emt 0:01:48]} 16. Bxg5 {[%emt 0:04:37]} Qxg5 {[%emt 0:00:03]} 17. f4 {[%emt 0:00:13]} Qd8 {[%emt 0:00:36]} 18. exd5 {[%emt 0:03:56]} Bxf5 {[%emt 0:01:14]} 19. gxf5 {[%emt 0:06:07]} Nxd5 {[%emt 0:00:46]} 20. Bxd5 {[%emt 0:03:37]} cxd5 {[%emt 0:00:12]} 21. Nxd5 {[%emt 0:00:24]} Qd6 {[%emt 0:19:57]} 22. Rc6 {[%emt 0:01:16]} Qd8 {[%emt 0:01:54]} 23. f6 {[%emt 0:06:32]} g6 {[%emt 0:03:28]} 24. b4 {[%emt 0:02:52]} Kh8 {[%emt 0:00:20]} 25. Qf3 {[%emt 0:14:20]} Nxb4 {[%emt 0:01:00]} 26. Nxb4 {[%emt 0:01:12]} Qd4+ {[%emt 0:00:06]} 27. Rf2 {[%emt 0:00:33]} Qxb4 {[%emt 0:00:05]} 28. Rfc2 {[%emt 0:03:35]} Rad8 {[%emt 0:02:07]} 29. Kg2 {[%emt 0:03:33]} Rfe8 {[%emt 0:01:17]} 30. Rf2 {[%emt 0:01:40]} Qd4 {[%emt 0:03:11]} 31. Qc3 {[%emt 0:01:33]} Qe4+ {[%emt 0:03:43]} 32. Qf3 {[%emt 0:00:16]} Qf5 {[%emt 0:02:06]} 33. Qb3 {[%emt 0:03:07]} Rd3 {[%emt 0:01:02]} 0-1

[Event "AUT-ch 2018"]
[Site "Vienna"]
[Date "2018.07.27"]
[Round "7"]
[White "Hofegger, Jakob"]
[Black "Konecny, Sophie"]
[Result "1-0"]
[ECO "A06"]
[WhiteElo "2147"]
[BlackElo "1889"]
[Annotator "NA"]
[PlyCount "119"]
[EventDate "2018.07.22"]
[EventType "swiss"]
[EventCountry "AUT"]
[SourceTitle "playchess.com"]
[Source "ChessBase"]
[SourceQuality "1"]
[TimeControl "40/5400+30:1800+30"]

1. Nf3 {[%emt 0:00:00]} d5 {[%emt 0:00:08]} 2. g3 {[%emt 0:00:00]} Bg4 {[%emt 0:00:06]} 3. Bg2 {[%emt 0:00:00]} c6 {[%emt 0:00:04]} 4. O-O {[%emt 0:00:00]} Nd7 {[%emt 0:00:08]} 5. d3 {[%emt 0:00:00]} Ngf6 {[%emt 0:00:13]} 6. Qe1 {[%emt 0:00:26]} e5 {[%emt 0:00:13]} 7. h3 {[%emt 0:00:33]} Bh5 {[%emt 0:00:08]} 8. e4 {[%emt 0:00:10]} dxe4 {[%emt 0:00:15]} 9. dxe4 {[%emt 0:03:22]} Be7 {[%emt 0:00:07]} 10. Nbd2 {[%emt 0:00:26]} O-O {[%emt 0:00:08]} 11. b3 {[%emt 0:02:43]} Qc7 {[%emt 0:03:06]} 12. Bb2 {[%emt 0:00:33]} Rfe8 {[%emt 0:01:57]} 13. Nc4 {[%emt 0:07:14]} Bf8 {[%emt 0:03:13]} 14. Nh4 {[%emt 0:07:11]} Nc5 {[%emt 0:03:56]} 15. g4 {[%emt 0:12:48]} Bg6 {[%emt 0:02:02]} 16. Nf5 {[%emt 0:00:12]} b5 {[%emt 0:08:46]} 17. Nd2 {[%emt 0:03:34]} Ne6 {[%emt 0:02:15]} 18. Nf3 {[%emt 0:05:30]} Nf4 {[%emt 0:03:47]} 19. Qe3 {[%emt 0:01:22]} Nxg2 {[%emt 0:05:03]} 20. Kxg2 {[%emt 0:00:06]} b4 {[%emt 0:01:59]} 21. Rfd1 {[%emt 0:05:20]} Bxf5 {[%emt 0:04:54]} 22. gxf5 {[%emt 0:01:44]} Nh5 {[%emt 0:05:53]} 23. Kh2 {[%emt 0:02:21]} f6 {[%emt 0:02:25]} 24. Nd2 {[%emt 0:09:44]} Red8 {[%emt 0:04:32]} 25. Nc4 {[%emt 0:01:24]} Nf4 {[%emt 0:04:21]} 26. a3 {[%emt 0:10:32]} Rxd1 {[%emt 0:07:30]} 27. Rxd1 {[%emt 0:00:06]} c5 {[%emt 0:02:00]} 28. a4 {[%emt 0:01:23]} Rd8 {[%emt 0:02:24]} 29. Rxd8 {[%emt 0:07:39]} Qxd8 {[%emt 0:00:05]} 30. Qd2 {[%emt 0:00:04]} Qe8 {[%emt 0:02:36]} 31. Qd1 {[%emt 0:03:45]} Qc6 {[%emt 0:01:57]} 32. Qf3 {[%emt 0:05:27]} Qe8 {[%emt 0:04:29]} 33. Bc1 {[%emt 0:01:32]} Nh5 {[%emt 0:03:10]} 34. Qd1 {[%emt 0:03:27]} g6 {[%emt 0:04:10]} 35. Qd5+ {[%emt 0:02:54]} Qf7 {[%emt 0:02:10]} 36. fxg6 {[%emt 0:00:51]} hxg6 {[%emt 0:00:42]} 37. Be3 {[%emt 0:01:04]} Nf4 {[%emt 0:02:30]} 38. Bxf4 {[%emt 0:01:01]} exf4 {[%emt 0:00:30]} 39. Kg2 {[%emt 0:00:12]} g5 {[%emt 0:03:21]} 40. Kf3 {[%emt 0:02:16]} Kg7 {[%emt 0:31:52]} 41. Qxf7+ {[%emt 0:12:12]} Kxf7 {[%emt 0:00:00]} 42. Ke2 {[%emt 0:00:53]} Ke6 {[%emt 0:00:00]} 43. Kd3 {[%emt 0:01:36]} f5 {[%emt 0:00:00]} 44. f3 {[%emt 0:00:44]} Be7 {[%emt 0:00:00]} 45. Na5 {[%emt 0:01:22]} Bd8 {[%emt 0:00:00]} 46. Nc4 {[%emt 0:02:29]} Bc7 {[%emt 0:00:00]} 47. Nd2 {[%emt 0:00:30]} Bd6 {[%emt 0:00:00]} 48. Kc4 {[%emt 0:01:03]} fxe4 {[%emt 0:00:00]} 49. Nxe4 {[%emt 0:00:00]} Be7 {[%emt 0:00:00]} 50. Nxc5+ {[%emt 0:00:48]} Kd6 {[%emt 0:00:00]} 51. Nd3 {[%emt 0:00:56]} a5 {[%emt 0:00:00]} 52. Kd4 {[%emt 0:01:27]} Bf8 {[%emt 0:00:00]} 53. Ke4 {[%emt 0:00:34]} Ke6 {[%emt 0:00:00]} 54. Nb2 {[%emt 0:00:30]} Bd6 {[%emt 0:00:00]} 55. Nc4 {[%emt 0:00:38]} Bc7 {[%emt 0:00:00]} 56. Kd4 {[%emt 0:07:18]} Bd8 {[%emt 0:00:00]} 57. Kc5 {[%emt 0:00:30]} Bc7 {[%emt 0:00:00]} 58. Kc6 {[%emt 0:02:47]} Bd8 {[%emt 0:00:00]} 59. Kb5 {[%emt 0:00:48]} Kd5 {[%emt 0:00:00]} 60. Nxa5 {[%emt 0:00:09]} 1-0